[Event "*** MasterClass Titled Tuesday Blitz"]
[Site "Chess.com"]
[Date "2017.10.03"]
[Round "1"]
[White "Morf1us"]
[Black "jefferyx"]
[Result "1-0"]
[WhiteElo "2425"]
[BlackElo "2739"]
[TimeControl "180+2"]
[EndTime "13:09:36 PDT"]
[Termination "Morf1us won by resignation"]

1. e4 {[%clk 0:03:01.9]} 1... c6 {[%clk 0:03:01.3]} 2. d4 {[%clk 0:03:01.7]}
2... d5 {[%clk 0:03:02.3]} 3. exd5 {[%clk 0:03:03.6]} 3... cxd5 {[%clk
0:03:03.4]} 4. c4 {[%clk 0:03:05.2]} 4... Nf6 {[%clk 0:03:04.8]} 5. Nc3 {[%clk
0:03:06.7]} 5... Nc6 {[%clk 0:03:06.2]} 6. Bg5 {[%clk 0:03:06.8]} 6... Be6
{[%clk 0:02:54.7]} 7. a3 {[%clk 0:03:07]} 7... g6 {[%clk 0:02:32.2]} 8. Bxf6
{[%clk 0:03:07.5]} 8... exf6 {[%clk 0:02:34.1]} 9. Be2 {[%clk 0:03:08.9]} 9...
Bg7 {[%clk 0:02:32.2]} 10. Bf3 {[%clk 0:03:09.1]} 10... Ne7 {[%clk 0:02:25.7]}
11. c5 {[%clk 0:02:18.6]} 11... O-O {[%clk 0:02:25.6]} 12. Nge2 {[%clk
0:02:19.6]} 12... Nc6 {[%clk 0:02:14.1]} 13. b4 {[%clk 0:02:13.8]} 13... f5
{[%clk 0:02:14.6]} 14. O-O {[%clk 0:02:13.8]} 14... g5 {[%clk 0:02:12.3]} 15. g3
{[%clk 0:02:12.1]} 15... Qf6 {[%clk 0:02:07.6]} 16. Nxd5 {[%clk 0:01:59.7]}
16... Bxd5 {[%clk 0:02:08.6]} 17. Bxd5 {[%clk 0:02:01.6]} 17... Rad8 {[%clk
0:02:10.3]} 18. Bg2 {[%clk 0:01:48.2]} 18... Nxd4 {[%clk 0:02:10.9]} 19. Nxd4
{[%clk 0:01:49.7]} 19... Rxd4 {[%clk 0:02:12.8]} 20. Qc2 {[%clk 0:01:51.1]}
20... f4 {[%clk 0:02:09]} 21. Bxb7 {[%clk 0:01:45]} 21... f3 {[%clk 0:02:10.1]}
22. Rad1 {[%clk 0:01:41.9]} 22... g4 {[%clk 0:01:52.1]} 23. Rxd4 {[%clk
0:01:31.7]} 23... Qxd4 {[%clk 0:01:54]} 24. Qe4 {[%clk 0:01:33.2]} 24... f5
{[%clk 0:01:41.2]} 25. Qe6+ {[%clk 0:01:14.3]} 25... Kh8 {[%clk 0:01:41.3]} 26.
c6 {[%clk 0:01:15.4]} 26... Be5 {[%clk 0:01:27.8]} 27. Re1 {[%clk 0:01:12]}
27... Bc7 {[%clk 0:01:06.3]} 28. Qe7 {[%clk 0:00:32]} 28... Qd8 {[%clk
0:01:06.8]} 29. h3 {[%clk 0:00:24.4]} 29... Bb6 {[%clk 0:01:00.4]} 30. hxg4
{[%clk 0:00:20.9]} 30... fxg4 {[%clk 0:00:51.7]} 31. Qe5+ {[%clk 0:00:15.2]}
31... Rf6 {[%clk 0:00:52.6]} 32. Qe8+ {[%clk 0:00:11.3]} 32... Rf8 {[%clk
0:00:52.7]} 33. Qxd8 {[%clk 0:00:11.2]} 33... Rxd8 {[%clk 0:00:53.7]} 34. Rc1
{[%clk 0:00:12.8]} 34... Bc7 {[%clk 0:00:46.1]} 35. Ba6 {[%clk 0:00:12.3]} 35...
Rd2 {[%clk 0:00:45.6]} 36. Bc4 {[%clk 0:00:11.6]} 36... Bb6 {[%clk 0:00:45]} 37.
Be6 {[%clk 0:00:11.6]} 37... Rxf2 {[%clk 0:00:43.7]} 38. Kh1 {[%clk 0:00:10.5]}
38... h5 {[%clk 0:00:28.1]} 39. c7 {[%clk 0:00:09.5]} 39... Bxc7 {[%clk
0:00:29.7]} 40. Rxc7 {[%clk 0:00:11.1]} 40... h4 {[%clk 0:00:31.6]} 41. Bxg4
{[%clk 0:00:10.1]} 41... hxg3 {[%clk 0:00:32.4]} 42. Bxf3 {[%clk 0:00:11.7]}
42... Rxf3 {[%clk 0:00:34.3]} 43. Rxa7 {[%clk 0:00:12.3]} 43... Rb3 {[%clk
0:00:32.1]} 44. Kg2 {[%clk 0:00:13.3]} 44... Kg8 {[%clk 0:00:33.1]} 45. Ra5
{[%clk 0:00:13.5]} 45... Kf7 {[%clk 0:00:33.3]} 46. b5 {[%clk 0:00:14.9]} 46...
Ke6 {[%clk 0:00:34.6]} 47. a4 {[%clk 0:00:16.4]} 47... Kd5 {[%clk 0:00:33.9]}
48. Ra6 {[%clk 0:00:17.7]} 48... Kc5 {[%clk 0:00:23.5]} 49. Kh3 {[%clk 0:00:13]}
49... Kb4 {[%clk 0:00:17.7]} 50. b6 {[%clk 0:00:12.1]} 50... Kc5 {[%clk
0:00:18.7]} 51. a5 {[%clk 0:00:13.3]} 51... Kc6 {[%clk 0:00:16.7]} 52. Ra7
{[%clk 0:00:14.6]} 52... Ra3 {[%clk 0:00:12.7]} 53. b7 {[%clk 0:00:14.7]} 1-0

[Event "*** MasterClass Titled Tuesday Blitz"]
[Site "Chess.com"]
[Date "2017.10.03"]
[Round "1"]
[White "sergiochess83"]
[Black "IMVoja"]
[Result "1-0"]
[WhiteElo "2711"]
[BlackElo "2399"]
[TimeControl "180+2"]
[EndTime "13:09:41 PDT"]
[Termination "sergiochess83 won by resignation"]

1. e4 {[%clk 0:02:55.7]} 1... c6 {[%clk 0:03:00.3]} 2. d4 {[%clk 0:02:52.4]}
2... d5 {[%clk 0:03:00.9]} 3. e5 {[%clk 0:02:54]} 3... Bf5 {[%clk 0:02:59.1]} 4.
Nf3 {[%clk 0:02:54.5]} 4... e6 {[%clk 0:03:00]} 5. Be2 {[%clk 0:02:55.6]} 5...
h6 {[%clk 0:02:58]} 6. O-O {[%clk 0:02:55.4]} 6... Ne7 {[%clk 0:02:55.6]} 7.
Nbd2 {[%clk 0:02:56.3]} 7... c5 {[%clk 0:02:54.1]} 8. dxc5 {[%clk 0:02:35.5]}
8... Nbc6 {[%clk 0:02:41.8]} 9. Nb3 {[%clk 0:02:31]} 9... Ng6 {[%clk 0:02:38.5]}
10. Nfd4 {[%clk 0:02:26.5]} 10... Nxd4 {[%clk 0:02:11.9]} 11. Nxd4 {[%clk
0:02:26.2]} 11... Bxc5 {[%clk 0:02:12.9]} 12. Nxf5 {[%clk 0:02:23]} 12... exf5
{[%clk 0:02:13.3]} 13. Bb5+ {[%clk 0:02:23.9]} 13... Kf8 {[%clk 0:02:13.7]} 14.
Qe2 {[%clk 0:02:21.4]} 14... Qc7 {[%clk 0:02:05.6]} 15. e6 {[%clk 0:02:13.8]}
15... Qe5 {[%clk 0:01:52.2]} 16. exf7 {[%clk 0:01:53.6]} 16... Qxe2 {[%clk
0:01:48.9]} 17. Bxe2 {[%clk 0:01:53.6]} 17... Kxf7 {[%clk 0:01:50.8]} 18. Bf3
{[%clk 0:01:53.7]} 18... Rad8 {[%clk 0:01:47.3]} 19. Rd1 {[%clk 0:01:54.6]}
19... Ne7 {[%clk 0:01:46.7]} 20. b4 {[%clk 0:01:45.1]} 20... Bb6 {[%clk
0:01:32.9]} 21. a4 {[%clk 0:01:44.4]} 21... a6 {[%clk 0:01:31.1]} 22. h4 {[%clk
0:01:26.7]} 22... Rd7 {[%clk 0:01:21]} 23. c4 {[%clk 0:01:23.8]} 23... Rhd8
{[%clk 0:01:12.2]} 24. c5 {[%clk 0:01:23.6]} 24... Bc7 {[%clk 0:01:13.2]} 25.
Bb2 {[%clk 0:01:20.9]} 25... Ng6 {[%clk 0:01:00.5]} 26. Bh5 {[%clk 0:00:51.1]}
26... d4 {[%clk 0:01:01]} 27. g3 {[%clk 0:00:52.3]} 27... Kf6 {[%clk 0:00:57.8]}
28. f4 {[%clk 0:00:53.4]} 28... Ne7 {[%clk 0:00:50.4]} 29. b5 {[%clk 0:00:54.5]}
29... Ba5 {[%clk 0:00:48.3]} 30. Rd3 {[%clk 0:00:50.9]} 30... Bb4 {[%clk
0:00:41.2]} 31. Rc1 {[%clk 0:00:46.7]} 31... axb5 {[%clk 0:00:40.7]} 32. axb5
{[%clk 0:00:46.9]} 32... Bc3 {[%clk 0:00:38.4]} 33. Bxc3 {[%clk 0:00:24.4]}
33... dxc3 {[%clk 0:00:39.2]} 34. Rxd7 {[%clk 0:00:26.3]} 34... Rxd7 {[%clk
0:00:40.6]} 35. Rxc3 {[%clk 0:00:28.2]} 35... Rc7 {[%clk 0:00:36.5]} 36. Bf3
{[%clk 0:00:27.9]} 36... Ke6 {[%clk 0:00:37.9]} 37. Re3+ {[%clk 0:00:22.6]}
37... Kf6 {[%clk 0:00:38]} 38. Re5 {[%clk 0:00:18.6]} 38... g5 {[%clk
0:00:31.3]} 39. h5 {[%clk 0:00:19.7]} 39... gxf4 {[%clk 0:00:30.1]} 40. gxf4
{[%clk 0:00:20.7]} 40... Rd7 {[%clk 0:00:29.7]} 41. Kf2 {[%clk 0:00:20.1]} 41...
Rc7 {[%clk 0:00:27]} 42. Ke3 {[%clk 0:00:19.9]} 42... Rd7 {[%clk 0:00:27.7]} 43.
Bg2 {[%clk 0:00:17.6]} 43... Rc7 {[%clk 0:00:27.5]} 44. Kd4 {[%clk 0:00:14.7]}
44... Rd7+ {[%clk 0:00:28.4]} 45. Kc4 {[%clk 0:00:15.6]} 45... Rc7 {[%clk
0:00:28.4]} 46. Bf3 {[%clk 0:00:11]} 46... Rd7 {[%clk 0:00:29.1]} 47. Bd5 {[%clk
0:00:09.8]} 47... Rc7 {[%clk 0:00:28.9]} 48. Re6+ {[%clk 0:00:10.7]} 48... Kg7
{[%clk 0:00:30.3]} 49. Rb6 {[%clk 0:00:10.4]} 49... Nxd5 {[%clk 0:00:28.2]} 50.
Kxd5 {[%clk 0:00:12.3]} 50... Rd7+ {[%clk 0:00:29.1]} 51. Ke6 {[%clk 0:00:12.9]}
51... Rc7 {[%clk 0:00:30.2]} 52. Kd6 {[%clk 0:00:13.6]} 52... Rf7 {[%clk
0:00:31.4]} 53. c6 {[%clk 0:00:14.5]} 53... bxc6 {[%clk 0:00:31.9]} 54. bxc6
{[%clk 0:00:16.4]} 54... Rf6+ {[%clk 0:00:31.2]} 55. Kd5 {[%clk 0:00:17.4]}
55... Kf8 {[%clk 0:00:29.7]} 56. c7 {[%clk 0:00:16.3]} 1-0

[Event "*** MasterClass Titled Tuesday Blitz"]
[Site "Chess.com"]
[Date "2017.10.03"]
[Round "1"]
[White "Mbneu"]
[Black "Blitzstream"]
[Result "1/2-1/2"]
[WhiteElo "2187"]
[BlackElo "2487"]
[TimeControl "180+2"]
[EndTime "13:09:46 PDT"]
[Termination "Game drawn - insufficient material"]

1. d4 {[%clk 0:03:01.3]} 1... Nf6 {[%clk 0:02:58.2]} 2. c4 {[%clk 0:03:02.1]}
2... d6 {[%clk 0:02:57.3]} 3. f4 {[%clk 0:03:02.1]} 3... e5 {[%clk 0:02:51.4]}
4. dxe5 {[%clk 0:03:02.3]} 4... dxe5 {[%clk 0:02:51.4]} 5. Qxd8+ {[%clk
0:03:03.6]} 5... Kxd8 {[%clk 0:02:53.3]} 6. fxe5 {[%clk 0:03:04.9]} 6... Ng4
{[%clk 0:02:51.3]} 7. Bg5+ {[%clk 0:03:04.5]} 7... Be7 {[%clk 0:02:50]} 8. Bxe7+
{[%clk 0:02:58.5]} 8... Kxe7 {[%clk 0:02:51.9]} 9. Nf3 {[%clk 0:02:58.8]} 9...
Nc6 {[%clk 0:02:52.4]} 10. Nc3 {[%clk 0:02:59.9]} 10... Be6 {[%clk 0:02:48.1]}
11. e4 {[%clk 0:02:47]} 11... Nb4 {[%clk 0:02:25.2]} 12. Kd2 {[%clk 0:02:15.5]}
12... c6 {[%clk 0:02:21.8]} 13. Re1 {[%clk 0:02:03.5]} 13... Rad8+ {[%clk
0:02:18.4]} 14. Kc1 {[%clk 0:02:03.3]} 14... Nf2 {[%clk 0:02:19.2]} 15. Rg1
{[%clk 0:01:58.2]} 15... Nfd3+ {[%clk 0:02:19.2]} 16. Bxd3 {[%clk 0:01:55.6]}
16... Nxd3+ {[%clk 0:02:19.8]} 17. Kc2 {[%clk 0:01:55.1]} 17... Nxe1+ {[%clk
0:02:20.1]} 18. Nxe1 {[%clk 0:01:56]} 18... Bxc4 {[%clk 0:02:20.8]} 19. b3
{[%clk 0:01:52]} 19... Ba6 {[%clk 0:02:20.5]} 20. g4 {[%clk 0:01:39.9]} 20...
Rd7 {[%clk 0:02:18.7]} 21. Rg3 {[%clk 0:01:38.8]} 21... Rhd8 {[%clk 0:02:18.8]}
22. Rg2 {[%clk 0:01:39.8]} 22... Ke6 {[%clk 0:02:01.6]} 23. Nf3 {[%clk
0:01:39.1]} 23... h6 {[%clk 0:01:49.7]} 24. Rf2 {[%clk 0:01:38.2]} 24... b6
{[%clk 0:01:19.6]} 25. h4 {[%clk 0:01:37]} 25... Re7 {[%clk 0:01:15.4]} 26. h5
{[%clk 0:01:24]} 26... Kd7 {[%clk 0:01:12.6]} 27. Nh4 {[%clk 0:01:21.4]} 27...
Kc8 {[%clk 0:00:51.7]} 28. Nf5 {[%clk 0:01:16.7]} 28... Rxe5 {[%clk 0:00:51.6]}
29. Nxg7 {[%clk 0:01:16]} 29... Bd3+ {[%clk 0:00:45.2]} 30. Kb2 {[%clk
0:01:15.9]} 30... Bxe4 {[%clk 0:00:45.6]} 31. Rxf7 {[%clk 0:01:14.7]} 31... Rd2+
{[%clk 0:00:41.6]} 32. Ka3 {[%clk 0:01:12.8]} 32... Ra5+ {[%clk 0:00:30.9]} 33.
Na4 {[%clk 0:01:12.7]} 33... b5 {[%clk 0:00:26.6]} 34. Kb4 {[%clk 0:01:09.6]}
34... bxa4 {[%clk 0:00:13]} 35. Kxa5 {[%clk 0:01:09.2]} 35... a3 {[%clk
0:00:13.9]} 36. Ne8 {[%clk 0:00:48.3]} 36... Kd8 {[%clk 0:00:11.5]} 37. Nf6
{[%clk 0:00:47.3]} 37... Bb1 {[%clk 0:00:11]} 38. Kb4 {[%clk 0:00:43.5]} 38...
Rxa2 {[%clk 0:00:11.2]} 39. Rxa7 {[%clk 0:00:43]} 39... Rf2 {[%clk 0:00:11.2]}
40. Ng8 {[%clk 0:00:38.1]} 40... a2 {[%clk 0:00:12.2]} 41. Nxh6 {[%clk
0:00:38.2]} 41... Rf6 {[%clk 0:00:13.3]} 42. g5 {[%clk 0:00:38]} 42... Rf4+
{[%clk 0:00:13.6]} 43. Kc3 {[%clk 0:00:37.4]} 43... Rh4 {[%clk 0:00:13.6]} 44.
g6 {[%clk 0:00:34.8]} 44... Bxg6 {[%clk 0:00:08.7]} 45. hxg6 {[%clk 0:00:33.4]}
45... Rxh6 {[%clk 0:00:10.3]} 46. g7 {[%clk 0:00:33.1]} 46... Rg6 {[%clk
0:00:10.7]} 47. Kb2 {[%clk 0:00:34]} 47... Rg2+ {[%clk 0:00:11.3]} 48. Ka1
{[%clk 0:00:34.7]} 48... Ke8 {[%clk 0:00:11.2]} 49. Rxa2 {[%clk 0:00:14]} 49...
Rxg7 {[%clk 0:00:11.6]} 50. Ra8+ {[%clk 0:00:14.2]} 50... Kf7 {[%clk 0:00:12.9]}
51. Ra7+ {[%clk 0:00:14.6]} 51... Kf6 {[%clk 0:00:14.2]} 52. Rxg7 {[%clk
0:00:14.1]} 52... Kxg7 {[%clk 0:00:16.1]} 53. Kb2 {[%clk 0:00:14.5]} 53... Kf6
{[%clk 0:00:18]} 54. Kc3 {[%clk 0:00:15.7]} 54... Ke6 {[%clk 0:00:19.9]} 55. Kc4
{[%clk 0:00:17]} 55... Kd6 {[%clk 0:00:21.5]} 56. b4 {[%clk 0:00:18]} 56... Kc7
{[%clk 0:00:22.2]} 57. b5 {[%clk 0:00:18.4]} 57... cxb5+ {[%clk 0:00:23.3]} 58.
Kxb5 {[%clk 0:00:19.2]} 1/2-1/2

[Event "*** MasterClass Titled Tuesday Blitz"]
[Site "Chess.com"]
[Date "2017.10.03"]
[Round "1"]
[White "wonderfultime"]
[Black "ruvat"]
[Result "1-0"]
[WhiteElo "2574"]
[BlackElo "2299"]
[TimeControl "180+2"]
[EndTime "13:09:58 PDT"]
[Termination "wonderfultime won on time"]

1. d4 {[%clk 0:02:59.3]} 1... d6 {[%clk 0:03:00.3]} 2. c4 {[%clk 0:02:48.6]}
2... e5 {[%clk 0:03:00.5]} 3. Nf3 {[%clk 0:02:45.8]} 3... e4 {[%clk 0:03:00.7]}
4. Ng5 {[%clk 0:02:45.8]} 4... Nf6 {[%clk 0:03:01.2]} 5. Nc3 {[%clk 0:02:46.1]}
5... Qe7 {[%clk 0:03:01.7]} 6. Qc2 {[%clk 0:02:41]} 6... Nc6 {[%clk 0:03:01.4]}
7. Ngxe4 {[%clk 0:01:54.5]} 7... Nxe4 {[%clk 0:02:49]} 8. Nxe4 {[%clk
0:01:50.1]} 8... Nxd4 {[%clk 0:02:47.6]} 9. Qd3 {[%clk 0:01:51]} 9... Nc6 {[%clk
0:02:32.9]} 10. Nc3 {[%clk 0:01:42.9]} 10... Ne5 {[%clk 0:02:29.1]} 11. Qe4
{[%clk 0:01:36.4]} 11... c6 {[%clk 0:02:25.8]} 12. Bf4 {[%clk 0:01:34.7]} 12...
g6 {[%clk 0:02:15.1]} 13. e3 {[%clk 0:01:33.4]} 13... Bf5 {[%clk 0:02:14.5]} 14.
Qd4 {[%clk 0:01:33.5]} 14... Bg7 {[%clk 0:02:13.8]} 15. Qd2 {[%clk 0:01:34.6]}
15... O-O {[%clk 0:02:10.2]} 16. Be2 {[%clk 0:01:35.3]} 16... Rad8 {[%clk
0:02:09.6]} 17. O-O {[%clk 0:01:24.2]} 17... Rfe8 {[%clk 0:02:09.9]} 18. Rfd1
{[%clk 0:01:23.7]} 18... Be6 {[%clk 0:01:47.9]} 19. b3 {[%clk 0:00:58.9]} 19...
f5 {[%clk 0:01:26.5]} 20. Rac1 {[%clk 0:00:56.3]} 20... Qf7 {[%clk 0:01:20.3]}
21. Qc2 {[%clk 0:00:54.1]} 21... h6 {[%clk 0:01:16.4]} 22. Bg3 {[%clk
0:00:18.9]} 22... a6 {[%clk 0:01:14.3]} 23. Bf1 {[%clk 0:00:19.5]} 23... Qf6
{[%clk 0:01:06.9]} 24. Ne2 {[%clk 0:00:15.7]} 24... g5 {[%clk 0:01:04.8]} 25. h3
{[%clk 0:00:16.6]} 25... h5 {[%clk 0:01:02.4]} 26. Bh2 {[%clk 0:00:17.8]} 26...
Nf7 {[%clk 0:00:36.6]} 27. Nd4 {[%clk 0:00:18.2]} 27... Bc8 {[%clk 0:00:35.8]}
28. Ne2 {[%clk 0:00:16.9]} 28... Kh8 {[%clk 0:00:34.4]} 29. Ng3 {[%clk
0:00:17.1]} 29... Qg6 {[%clk 0:00:31.6]} 30. Bd3 {[%clk 0:00:18.3]} 30... Nh6
{[%clk 0:00:28.8]} 31. Re1 {[%clk 0:00:17.8]} 31... h4 {[%clk 0:00:29.2]} 32.
Ne2 {[%clk 0:00:18.9]} 32... Qf6 {[%clk 0:00:29.6]} 33. Kh1 {[%clk 0:00:18.5]}
33... Nf7 {[%clk 0:00:30.3]} 34. Rcd1 {[%clk 0:00:18.9]} 34... Ne5 {[%clk
0:00:31]} 35. Nd4 {[%clk 0:00:19.9]} 35... Nxd3 {[%clk 0:00:30.9]} 36. Qxd3
{[%clk 0:00:21.8]} 36... d5 {[%clk 0:00:23.6]} 37. c5 {[%clk 0:00:21.8]} 37...
Bd7 {[%clk 0:00:20.8]} 38. Bc7 {[%clk 0:00:21.5]} 38... Rc8 {[%clk 0:00:21.3]}
39. Bd6 {[%clk 0:00:23]} 39... Re4 {[%clk 0:00:21.8]} 40. f3 {[%clk 0:00:24.4]}
40... Ree8 {[%clk 0:00:21.7]} 41. Rf1 {[%clk 0:00:25.1]} 41... Rcd8 {[%clk
0:00:19.3]} 42. Rde1 {[%clk 0:00:26.5]} 42... Bc8 {[%clk 0:00:20.1]} 43. b4
{[%clk 0:00:28]} 43... Rd7 {[%clk 0:00:20.8]} 44. a3 {[%clk 0:00:29.1]} 44...
Rdd8 {[%clk 0:00:21.9]} 45. Qd2 {[%clk 0:00:28]} 45... Bd7 {[%clk 0:00:22.2]}
46. Qf2 {[%clk 0:00:29.3]} 46... f4 {[%clk 0:00:21.1]} 47. Nc2 {[%clk 0:00:27]}
47... fxe3 {[%clk 0:00:18.7]} 48. Rxe3 {[%clk 0:00:27.3]} 48... Rxe3 {[%clk
0:00:18.5]} 49. Qxe3 {[%clk 0:00:28.7]} 49... Re8 {[%clk 0:00:19.1]} 50. Qd2
{[%clk 0:00:30]} 50... Kh7 {[%clk 0:00:16.3]} 51. Ne1 {[%clk 0:00:23.9]} 51...
Bf5 {[%clk 0:00:16.1]} 52. f4 {[%clk 0:00:22.6]} 52... g4 {[%clk 0:00:16.3]} 53.
hxg4 {[%clk 0:00:24.5]} 53... Bxg4 {[%clk 0:00:17.2]} 54. Nf3 {[%clk 0:00:26.4]}
54... Qf5 {[%clk 0:00:11.2]} 55. Ng5+ {[%clk 0:00:20.1]} 55... Kh8 {[%clk
0:00:04.5]} 56. Qf2 {[%clk 0:00:22]} 1-0

[Event "*** MasterClass Titled Tuesday Blitz"]
[Site "Chess.com"]
[Date "2017.10.03"]
[Round "1"]
[White "pKiLz5Rn9b"]
[Black "anon97531"]
[Result "1-0"]
[WhiteElo "2529"]
[BlackElo "2268"]
[TimeControl "180+2"]
[EndTime "13:10:05 PDT"]
[Termination "pKiLz5Rn9b won by resignation"]

1. Nf3 {[%clk 0:03:01.6]} 1... d5 {[%clk 0:02:56.4]} 2. b3 {[%clk 0:03:00.7]}
2... Nd7 {[%clk 0:02:48.6]} 3. Bb2 {[%clk 0:03:01.4]} 3... f6 {[%clk 0:02:48.3]}
4. d4 {[%clk 0:03:01.8]} 4... c6 {[%clk 0:02:46.3]} 5. e3 {[%clk 0:03:03]} 5...
e6 {[%clk 0:02:47.2]} 6. c4 {[%clk 0:03:03.9]} 6... Bd6 {[%clk 0:02:48.1]} 7.
Bd3 {[%clk 0:03:04.9]} 7... Ne7 {[%clk 0:02:48.7]} 8. Nbd2 {[%clk 0:03:05.8]}
8... b6 {[%clk 0:02:48.4]} 9. e4 {[%clk 0:03:07]} 9... Bc7 {[%clk 0:02:44.4]}
10. Qe2 {[%clk 0:03:05.3]} 10... O-O {[%clk 0:02:43.4]} 11. O-O {[%clk
0:03:06.4]} 11... Ng6 {[%clk 0:02:40.5]} 12. g3 {[%clk 0:03:07]} 12... Bb7
{[%clk 0:02:31.3]} 13. Rfe1 {[%clk 0:03:08.1]} 13... Re8 {[%clk 0:02:32]} 14.
Qf1 {[%clk 0:03:04.4]} 14... e5 {[%clk 0:02:31.8]} 15. dxe5 {[%clk 0:03:03.6]}
15... Ndxe5 {[%clk 0:02:32.7]} 16. Nxe5 {[%clk 0:03:04.6]} 16... Nxe5 {[%clk
0:02:33.6]} 17. exd5 {[%clk 0:02:54.6]} 17... Nxd3 {[%clk 0:02:28.4]} 18. Qxd3
{[%clk 0:02:56.5]} 18... cxd5 {[%clk 0:02:28.6]} 19. cxd5 {[%clk 0:02:56.2]}
19... Qxd5 {[%clk 0:02:25.2]} 20. Qxd5+ {[%clk 0:02:52.6]} 20... Bxd5 {[%clk
0:02:26.3]} 21. Nf1 {[%clk 0:02:48.2]} 21... Bf7 {[%clk 0:02:14.4]} 22. Ne3
{[%clk 0:02:48.2]} 22... Be5 {[%clk 0:02:14.5]} 23. Bxe5 {[%clk 0:02:47.9]}
23... Rxe5 {[%clk 0:02:15.3]} 24. Rac1 {[%clk 0:02:49.5]} 24... Rae8 {[%clk
0:02:15.6]} 25. Rc7 {[%clk 0:02:49.8]} 25... R5e7 {[%clk 0:02:16.6]} 26. Rec1
{[%clk 0:02:48]} 26... Kf8 {[%clk 0:02:17.8]} 27. Rxe7 {[%clk 0:02:07.6]} 27...
Rxe7 {[%clk 0:02:17.7]} 28. Nf5 {[%clk 0:01:10.4]} 28... Re5 {[%clk 0:01:53.7]}
29. g4 {[%clk 0:01:04]} 29... g6 {[%clk 0:01:51.9]} 30. Ne3 {[%clk 0:01:02.8]}
30... Re7 {[%clk 0:01:50.3]} 31. h3 {[%clk 0:01:01.5]} 31... Be6 {[%clk
0:01:50]} 32. Kg2 {[%clk 0:01:00.6]} 32... Kf7 {[%clk 0:01:50.6]} 33. Kg3 {[%clk
0:01:01.8]} 33... Rd7 {[%clk 0:01:51.6]} 34. Rc6 {[%clk 0:01:00.7]} 34... Ke7
{[%clk 0:01:51.3]} 35. h4 {[%clk 0:01:00.8]} 35... Rd6 {[%clk 0:01:51.9]} 36.
Rc7+ {[%clk 0:01:01.4]} 36... Rd7 {[%clk 0:01:53.2]} 37. Rc6 {[%clk 0:01:02.1]}
37... Rd6 {[%clk 0:01:54.6]} 38. Rc3 {[%clk 0:01:02]} 38... Rd7 {[%clk
0:01:53.5]} 39. f3 {[%clk 0:01:02.7]} 39... Kd8 {[%clk 0:01:50.9]} 40. Ng2
{[%clk 0:00:52.8]} 40... Bf7 {[%clk 0:01:45.6]} 41. Nf4 {[%clk 0:00:49.7]} 41...
Rc7 {[%clk 0:01:45.4]} 42. Rd3+ {[%clk 0:00:48.6]} 42... Rd7 {[%clk 0:01:46.6]}
43. g5 {[%clk 0:00:48]} 43... Rxd3 {[%clk 0:01:45.8]} 44. Nxd3 {[%clk
0:00:49.9]} 44... Ke7 {[%clk 0:01:43.9]} 45. Kf4 {[%clk 0:00:51.1]} 45... Be6
{[%clk 0:01:39.5]} 46. Nb4 {[%clk 0:00:47.1]} 46... a5 {[%clk 0:01:14.2]} 47.
Nc6+ {[%clk 0:00:46.1]} 47... Kd6 {[%clk 0:01:11.4]} 48. Nd4 {[%clk 0:00:48]}
48... Ke7 {[%clk 0:01:04.9]} 49. Ke4 {[%clk 0:00:45]} 49... Bd7 {[%clk
0:01:03.3]} 50. Kd5 {[%clk 0:00:43.9]} 50... fxg5 {[%clk 0:00:59.4]} 51. hxg5
{[%clk 0:00:44.7]} 51... Be8 {[%clk 0:00:51.7]} 52. f4 {[%clk 0:00:44.5]} 52...
a4 {[%clk 0:00:45.1]} 53. Ke5 {[%clk 0:00:36.3]} 53... axb3 {[%clk 0:00:43.7]}
54. axb3 {[%clk 0:00:38.2]} 54... Bf7 {[%clk 0:00:45]} 55. b4 {[%clk 0:00:39.1]}
55... Ba2 {[%clk 0:00:43.4]} 56. Nb5 {[%clk 0:00:36.7]} 56... Bb1 {[%clk
0:00:38.2]} 57. Nc3 {[%clk 0:00:37.8]} 57... Bd3 {[%clk 0:00:32.9]} 58. Nd5+
{[%clk 0:00:38.7]} 58... Kd7 {[%clk 0:00:34.1]} 59. Nxb6+ {[%clk 0:00:39.5]}
59... Kc6 {[%clk 0:00:35.6]} 60. Nd5 {[%clk 0:00:39.3]} 60... Kb5 {[%clk
0:00:35.1]} 61. Nf6 {[%clk 0:00:38.4]} 61... Kxb4 {[%clk 0:00:29.9]} 62. Kd4
{[%clk 0:00:39.3]} 62... Bb1 {[%clk 0:00:29.7]} 63. Nxh7 {[%clk 0:00:40.7]}
63... Kb5 {[%clk 0:00:31.1]} 64. Kd5 {[%clk 0:00:41.4]} 64... Kb6 {[%clk
0:00:31.6]} 65. Kd6 {[%clk 0:00:42.6]} 65... Kb5 {[%clk 0:00:33.1]} 66. Nf6
{[%clk 0:00:42.2]} 66... Kc4 {[%clk 0:00:34.1]} 67. Ke5 {[%clk 0:00:43.4]} 67...
Kd3 {[%clk 0:00:33.2]} 68. Nd5 {[%clk 0:00:39.3]} 68... Ke2 {[%clk 0:00:30.1]}
69. Nc3+ {[%clk 0:00:39.8]} 1-0